bitfinex/quotes_BTCUSD_20251230
["timestamp","ask_amount","ask_price","bid_price","bid_amount"]
[1767059545584,0.01148,87288.0,87276.0,2e-07]
[1767059545782,0.01073703,87287.0,87276.0,2e-07]
[1767059546001,0.01148,87288.0,87276.0,2e-07]
[1767059546176,0.01073703,87287.0,87276.0,2e-07]
[1767059546360,0.01148,87288.0,87276.0,2e-07]
[1767059546565,0.01073813,87287.0,87276.0,2e-07]
[1767059546767,0.01148,87288.0,87276.0,2e-07]
[1767059547008,0.01073813,87287.0,87276.0,2e-07]
[1767059547186,0.01148,87288.0,87276.0,2e-07]
[1767059547967,0.01148,87288.0,87276.0,0.0114581]
[1767059548180,0.01148,87288.0,87276.0,2e-07]
[1767059548644,0.01148,87288.0,87276.0,0.0114581]
[1767059549263,0.01074273,87287.0,87276.0,0.0114581]
[1767059549439,0.01148,87288.0,87276.0,2e-07]
[1767059549637,0.01074292,87287.0,87276.0,2e-07]
[1767059549824,0.01148,87288.0,87276.0,2e-07]
[1767059550033,0.01074292,87287.0,87276.0,0.0114581]
[1767059550230,0.01148,87288.0,87276.0,0.0114581]
[1767059550430,0.01074311,87287.0,87276.0,0.0114581]
[1767059550656,0.01148,87288.0,87276.0,0.0114581]
[1767059550928,0.01074311,87287.0,87276.0,0.0114581]
[1767059551153,0.01148,87288.0,87276.0,0.0114581]
[1767059551353,0.0107446,87287.0,87276.0,0.0114581]
[1767059551562,0.01148,87288.0,87276.0,0.0114581]
[1767059551717,0.01074475,87287.0,87276.0,0.0114581]
[1767059551930,0.01148,87288.0,87276.0,0.0114581]
[1767059552174,0.01074475,87287.0,87276.0,2e-07]
[1767059552399,0.01074694,87286.0,87276.0,2e-07]
[1767059552615,0.01148,87288.0,87276.0,2e-07]
[1767059552844,0.01074694,87287.0,87276.0,2e-07]
[1767059553059,0.01074694,87286.0,87276.0,2e-07]
[1767059553301,0.01075064,87285.0,87276.0,2e-07]
[1767059553527,0.01148,87288.0,87276.0,2e-07]
[1767059553738,0.01075062,87287.0,87276.0,2e-07]
[1767059553998,0.01075062,87286.0,87276.0,2e-07]
[1767059554202,0.01075062,87285.0,87276.0,2e-07]
[1767059554376,0.01075082,87284.0,87276.0,2e-07]
[1767059554581,0.01148,87288.0,87276.0,2e-07]
[1767059554777,0.01075083,87287.0,87276.0,2e-07]
[1767059554963,0.01075083,87286.0,87276.0,2e-07]
[1767059555143,0.01075083,87285.0,87276.0,2e-07]
[1767059555345,0.01075083,87284.0,87276.0,2e-07]
[1767059555603,0.01148,87288.0,87276.0,2e-07]
[1767059555809,0.01075091,87287.0,87276.0,2e-07]
[1767059555970,0.01075091,87286.0,87276.0,2e-07]
[1767059556173,0.01075091,87285.0,87276.0,2e-07]
[1767059556421,0.01075091,87284.0,87276.0,2e-07]
[1767059556611,0.01148,87288.0,87276.0,2e-07]
[1767059556800,0.01075099,87287.0,87276.0,2e-07]
[1767059556996,0.01075099,87286.0,87276.0,2e-07]
[1767059557224,0.01148,87288.0,87276.0,2e-07]
[1767059557225,0.01075099,87285.0,87276.0,2e-07]
[1767059557435,0.01075099,87284.0,87276.0,2e-07]
[1767059557570,0.01148,87288.0,87276.0,2e-07]
[1767059557773,0.01075105,87287.0,87276.0,2e-07]
[1767059557992,0.01075105,87286.0,87276.0,2e-07]
[1767059558215,0.01075105,87285.0,87276.0,2e-07]
[1767059558420,0.01075105,87284.0,87276.0,2e-07]
[1767059558621,0.01148,87288.0,87276.0,2e-07]
[1767059558827,0.01075113,87287.0,87276.0,2e-07]
[1767059559043,0.01075113,87286.0,87276.0,2e-07]
[1767059559317,0.01075113,87285.0,87276.0,2e-07]
[1767059559543,0.01075113,87284.0,87276.0,2e-07]
[1767059559757,0.01148,87288.0,87276.0,2e-07]
[1767059559934,0.01075122,87287.0,87276.0,2e-07]
[1767059560071,0.01075122,87286.0,87276.0,2e-07]
[1767059560282,0.01075122,87285.0,87276.0,2e-07]
[1767059560481,0.01075122,87284.0,87276.0,2e-07]
[1767059560699,0.01075131,87283.0,87276.0,2e-07]
[1767059560977,0.01148,87288.0,87276.0,2e-07]
[1767059561222,0.01075135,87287.0,87276.0,2e-07]
[1767059561404,0.01075135,87286.0,87276.0,2e-07]
[1767059561605,0.01075135,87285.0,87276.0,2e-07]
[1767059561829,0.01075135,87284.0,87276.0,2e-07]
[1767059562005,0.01075135,87283.0,87276.0,2e-07]
[1767059562205,0.01148,87288.0,87276.0,2e-07]
[1767059562408,0.01075145,87287.0,87276.0,2e-07]
[1767059562630,0.01075145,87286.0,87276.0,2e-07]
[1767059562870,0.01075145,87285.0,87276.0,2e-07]
[1767059563071,0.01075145,87284.0,87276.0,2e-07]
[1767059563210,0.01075145,87283.0,87276.0,2e-07]
[1767059563417,0.01148,87288.0,87276.0,2e-07]
[1767059563643,0.01075146,87287.0,87276.0,2e-07]
[1767059563853,0.01075146,87286.0,87276.0,2e-07]
[1767059564105,0.01075146,87285.0,87276.0,2e-07]
[1767059564383,0.01075146,87284.0,87276.0,2e-07]
[1767059564562,0.01075146,87283.0,87276.0,2e-07]
[1767059564764,0.01148,87288.0,87276.0,2e-07]
[1767059564897,0.01075152,87287.0,87276.0,2e-07]
[1767059565096,0.01075152,87286.0,87276.0,2e-07]
[1767059565376,0.01075152,87285.0,87276.0,2e-07]
[1767059565578,0.01075152,87284.0,87276.0,2e-07]
[1767059565694,0.01075152,87283.0,87276.0,2e-07]
[1767059565897,0.01148,87288.0,87276.0,2e-07]
[1767059566168,0.01075151,87287.0,87276.0,2e-07]
[1767059566374,0.01075151,87286.0,87276.0,2e-07]
[1767059566598,0.01075151,87285.0,87276.0,2e-07]
[1767059566800,0.01075151,87284.0,87276.0,2e-07]
[1767059566950,0.01075151,87283.0,87276.0,2e-07]
[1767059567133,0.01148,87288.0,87276.0,2e-07]
[1767059567335,0.0107515,87287.0,87276.0,2e-07]
[1767059567588,0.0107515,87286.0,87276.0,2e-07]
[1767059567735,0.0107515,87285.0,87276.0,2e-07]
[1767059567948,0.0107515,87284.0,87276.0,2e-07]
[1767059568148,0.0107515,87283.0,87276.0,2e-07]
[1767059568351,0.01148,87288.0,87276.0,2e-07]
[1767059568574,0.01075148,87287.0,87276.0,2e-07]
[1767059568783,0.01075148,87286.0,87276.0,2e-07]
[1767059568987,0.01075148,87285.0,87276.0,2e-07]
[1767059569201,0.01075148,87284.0,87276.0,2e-07]
[1767059569528,0.01075148,87283.0,87276.0,2e-07]
[1767059569671,0.01148,87288.0,87276.0,2e-07]
[1767059569871,0.01075147,87287.0,87276.0,2e-07]
[1767059570072,0.01075147,87286.0,87276.0,2e-07]
[1767059570273,0.01075147,87285.0,87276.0,2e-07]
[1767059570572,0.01075147,87284.0,87276.0,2e-07]
[1767059570761,0.01075147,87283.0,87276.0,2e-07]
[1767059570961,0.01148,87288.0,87276.0,2e-07]
[1767059571165,0.01075146,87287.0,87276.0,2e-07]
[1767059571362,0.01075146,87286.0,87276.0,2e-07]
[1767059571585,0.01075146,87285.0,87276.0,2e-07]
[1767059571800,0.01075146,87284.0,87276.0,2e-07]
[1767059571993,0.01075146,87283.0,87276.0,2e-07]
[1767059572195,0.01148,87288.0,87276.0,2e-07]
[1767059572532,0.01075146,87287.0,87276.0,2e-07]
[1767059572765,0.01075146,87286.0,87276.0,2e-07]
[1767059572948,0.01148,87288.0,87276.0,2e-07]
[1767059572949,0.01075146,87285.0,87276.0,2e-07]
[1767059573161,0.01075146,87284.0,87276.0,2e-07]
[1767059573495,0.01075146,87283.0,87276.0,2e-07]
[1767059573797,0.01148,87288.0,87283.0,0.000136]
[1767059574021,0.01075143,87287.0,87276.0,2e-07]
[1767059574221,0.01148,87288.0,87276.0,2e-07]
[1767059574222,0.01075143,87286.0,87276.0,2e-07]
[1767059574421,0.01075143,87285.0,87276.0,2e-07]
[1767059574650,0.01075143,87284.0,87276.0,2e-07]
[1767059574860,0.01075143,87283.0,87276.0,2e-07]
[1767059575062,0.14412,87292.0,87276.0,2e-07]
[1767059575199,0.01075123,87291.0,87277.0,0.01145777]
[1767059575399,0.53124066,87290.0,87278.0,0.01145764]
[1767059575608,0.53124066,87290.0,87276.0,0.0114581]
[1767059575609,0.01075123,87289.0,87276.0,2e-07]
[1767059575819,0.01075123,87288.0,87276.0,0.0114581]
[1767059576035,0.01075123,87287.0,87276.0,0.0114581]
[1767059576199,0.01075123,87286.0,87277.0,0.01145777]
[1767059576436,0.01075123,87285.0,87278.0,0.01145764]
[1767059576636,0.52048943,87290.0,87285.0,0.00055]
[1767059576985,0.01075109,87289.0,87277.0,0.01145777]
[1767059577194,0.01075109,87288.0,87277.0,0.01145777]
[1767059577398,0.01075109,87287.0,87277.0,0.01145777]
[1767059577526,0.01075109,87286.0,87277.0,0.01145777]
[1767059577746,0.01075109,87285.0,87279.0,0.0114575]
[1767059578036,0.01148,87294.0,87279.0,0.0114575]
[1767059578215,0.01075111,87293.0,87279.0,0.0114575]
[1767059578420,0.01075111,87292.0,87278.0,0.01145764]
[1767059578549,0.01075111,87291.0,87278.0,0.01145764]
[1767059578767,0.01148,87294.0,87278.0,0.01145764]
[1767059578768,0.01075111,87290.0,87278.0,0.01145764]
[1767059578968,0.01075111,87289.0,87278.0,0.01145764]
[1767059579214,0.01075111,87288.0,87277.0,0.01145777]
[1767059579419,0.01075111,87287.0,87277.0,0.01145777]
[1767059579621,0.01075111,87286.0,87277.0,0.01145777]
[1767059579881,0.01075111,87285.0,87275.0,0.0369053]
[1767059580078,0.01148,87294.0,87275.0,0.0369053]
[1767059580289,0.01075115,87293.0,87276.0,0.0114579]
[1767059580527,0.01075115,87292.0,87275.0,0.0369053]
[1767059580802,0.01075115,87291.0,87275.0,0.0369053]
[1767059581009,0.01075115,87290.0,87275.0,0.02544727]
[1767059581167,0.01075115,87289.0,87275.0,0.0369053]
[1767059581371,0.01075115,87288.0,87275.0,0.0369053]
[1767059581593,0.01075115,87287.0,87275.0,0.0369053]
[1767059581791,0.01075115,87286.0,87275.0,0.0369053]
[1767059581969,0.01075115,87285.0,87275.0,0.0369053]
[1767059582170,0.01148,87294.0,87275.0,0.02544727]
[1767059582374,0.01075125,87293.0,87275.0,0.02544727]
[1767059582599,0.01075125,87292.0,87275.0,0.02544727]
[1767059582769,0.01075125,87291.0,87275.0,0.02544727]
[1767059582973,0.01075125,87290.0,87275.0,0.02544727]
[1767059583186,0.01075125,87289.0,87275.0,0.02544727]
[1767059583409,0.01075125,87288.0,87275.0,0.02544727]
[1767059583608,0.01075125,87287.0,87275.0,0.02544727]
[1767059583808,0.01075125,87286.0,87275.0,0.02544727]
[1767059584096,0.01075125,87285.0,87275.0,0.02544727]
[1767059584306,0.01075125,87284.0,87275.0,0.02544727]
[1767059584552,0.52048943,87290.0,87275.0,0.02544727]
[1767059584759,0.01075161,87289.0,87275.0,0.02544727]
[1767059584892,0.01075161,87288.0,87275.0,0.02544727]
[1767059585091,0.52048943,87290.0,87275.0,0.02544727]
[1767059585092,0.01075161,87287.0,87275.0,0.02544727]
[1767059585292,0.01075161,87286.0,87275.0,0.02544727]
[1767059585496,0.01075161,87285.0,87275.0,0.02544727]
[1767059585888,0.00625122,87284.0,87280.0,0.01145737]
[1767059586090,0.01148,87297.0,87281.0,0.01145724]
[1767059586292,0.01148,87297.0,87282.0,0.01145711]
[1767059586497,0.0116014,87297.0,87282.0,0.01145711]
[1767059586702,0.0116014,87297.0,87283.0,0.01145698]
[1767059586917,0.0116014,87297.0,87282.0,0.06874258]
[1767059587124,0.0001214,87297.0,87288.0,0.01145632]
[1767059587333,0.0001214,87297.0,87294.0,0.01145554]
[1767059588111,0.00010779,87300.0,87297.0,0.01145514]
[1767059588308,0.00010779,87300.0,87299.0,0.05727442]
[1767059589099,0.00010779,87300.0,87298.0,0.01148]
[1767059589294,0.00010779,87300.0,87299.0,0.05727442]
[1767059590116,0.00010779,87300.0,87298.0,0.01148]
[1767059590703,0.00010779,87300.0,87299.0,0.05727442]
[1767059591313,0.00010779,87300.0,87298.0,0.01148]
[1767059591646,0.00010779,87300.0,87299.0,0.05727442]
[1767059592913,0.0002,87319.0,87316.0,0.01145265]
[1767059593107,0.00024943,87319.0,87316.0,0.01145265]
[1767059593765,0.0001461,87321.0,87315.0,0.01145278]
[1767059594191,0.0001461,87321.0,87313.0,0.01145304]
[1767059594407,0.0001461,87321.0,87316.0,0.01145265]
[1767059594600,0.0001461,87321.0,87314.0,0.05726443]
[1767059594964,0.0001461,87321.0,87314.0,4.43e-06]
[1767059595167,0.0001461,87321.0,87314.0,0.01145734]
[1767059595391,0.0001461,87321.0,87314.0,0.01145291]
[1767059595563,0.0001461,87321.0,87312.0,0.05726543]
[1767059595772,0.0001461,87321.0,87315.0,0.01145278]
[1767059596168,0.0001461,87321.0,87313.0,0.01145304]
[1767059596367,0.0001461,87321.0,87314.0,0.01145291]
[1767059596799,0.0001461,87321.0,87315.0,0.01145278]
[1767059596996,0.0001461,87329.0,87314.0,0.01145291]
[1767059597171,0.0001461,87329.0,87311.0,0.01148]
[1767059597374,0.0001461,87329.0,87314.0,0.01145291]
[1767059597602,0.0001461,87329.0,87312.0,0.05726589]
[1767059597773,0.0001461,87329.0,87315.0,0.01145278]
[1767059597977,0.0001461,87329.0,87312.0,0.05726589]
[1767059598187,0.0001461,87329.0,87316.0,0.01145265]
[1767059598617,0.00089239,87316.0,87315.0,0.01145278]
[1767059598775,2.39e-06,87316.0,87315.0,0.01145278]
[1767059598975,0.51995148,87330.0,87316.0,0.01145265]
[1767059599395,0.51995148,87330.0,87314.0,0.06871739]
[1767059599900,0.51995148,87330.0,87316.0,0.01145265]
[1767059600143,0.51995148,87330.0,87314.0,0.06871739]
[1767059600885,0.51995148,87330.0,87311.0,0.02293331]
[1767059601087,0.00055862,87334.0,87320.0,0.53140361]
[1767059601295,0.00055862,87334.0,87323.0,0.01145173]
[1767059601467,0.00055862,87334.0,87322.0,0.01145186]
[1767059601727,0.00055862,87334.0,87321.0,0.01148]
[1767059602171,0.00055862,87334.0,87322.0,0.01145186]
[1767059602642,0.00055862,87334.0,87321.0,0.02293199]
[1767059603058,0.00055862,87334.0,87322.0,0.01145186]
[1767059603811,0.00055862,87334.0,87321.0,0.01148]
[1767059604707,0.00055862,87334.0,87321.0,0.02293199]
[1767059604857,0.00055862,87334.0,87322.0,0.01145186]
[1767059605036,0.00055862,87334.0,87321.0,0.02293199]
[1767059605237,0.00055862,87334.0,87322.0,0.01145186]
[1767059605868,0.00055862,87334.0,87323.0,0.01145173]
[1767059606199,0.00055862,87334.0,87325.0,0.01145147]
[1767059606501,0.00055862,87334.0,87323.0,0.01145173]
[1767059607109,0.00055862,87334.0,87331.0,0.01145068]
[1767059607260,0.00055862,87334.0,87330.0,0.01145081]
[1767059607698,0.00055862,87334.0,87331.0,0.01145068]
[1767059609732,0.00055862,87334.0,87331.0,0.15096068]
[1767059610851,0.00055862,87334.0,87331.0,0.13951]
[1767059611051,0.00055862,87334.0,87330.0,0.01145081]
[1767059611843,0.00055862,87334.0,87331.0,0.01145068]
[1767059612222,0.00055862,87334.0,87330.0,0.01145081]
[1767059612429,0.00055862,87334.0,87331.0,0.01145068]
[1767059612848,0.00055862,87334.0,87329.0,0.01145094]
[1767059613050,0.00055862,87334.0,87328.0,0.02293108]
[1767059613223,0.00055862,87334.0,87328.0,0.01148]
[1767059613426,0.00055862,87334.0,87329.0,0.01145094]
[1767059613825,0.00055862,87334.0,87328.0,0.02293108]
[1767059614922,0.00055862,87334.0,87328.0,0.01148]
[1767059615044,0.00055862,87334.0,87328.0,0.010931]
[1767059615951,0.00055862,87334.0,87328.0,1e-06]
[1767059616158,0.00055862,87334.0,87324.0,0.0114516]
[1767059616367,0.00055862,87334.0,87325.0,0.01148]
[1767059616571,0.00055862,87334.0,87325.0,3e-05]
[1767059619242,0.00055862,87334.0,87319.0,0.0572613]
[1767059619451,0.00055,87319.0,87312.0,0.06871894]
[1767059619653,0.00055,87319.0,87313.0,0.02293304]
[1767059619858,0.51995148,87330.0,87314.0,0.01148]
[1767059620911,0.51995148,87330.0,87315.0,0.01148]
[1767059621536,0.01071959,87329.0,87316.0,0.01148]
[1767059621740,0.01071959,87328.0,87317.0,0.01148]
[1767059621917,0.01071959,87327.0,87317.0,0.01148]
[1767059622118,0.51995148,87330.0,87317.0,0.01148]
[1767059622346,0.01071959,87329.0,87317.0,0.01148]
[1767059622552,0.01071959,87328.0,87317.0,0.01148]
[1767059622732,0.01071959,87327.0,87317.0,0.01148]
[1767059623054,0.01071959,87326.0,87317.0,0.01148]
[1767059623296,0.51995148,87330.0,87317.0,0.01148]
[1767059623499,0.01072368,87329.0,87317.0,0.01148]
[1767059623703,0.01072368,87328.0,87317.0,3e-05]
[1767059623929,0.01072368,87327.0,87317.0,3e-05]
[1767059624100,0.01072368,87326.0,87317.0,0.01148252]
[1767059624328,0.51995148,87330.0,87317.0,0.01148252]
[1767059624593,0.01072478,87329.0,87319.0,0.01145226]
[1767059624801,0.01068356,87328.0,87320.0,0.53140361]
[1767059624994,0.00055862,87334.0,87320.0,0.01145213]
[1767059625673,0.00055862,87334.0,87324.0,0.0114516]
[1767059625879,0.00055862,87334.0,87321.0,0.01145199]
[1767059626111,0.00055862,87334.0,87322.0,0.13753345]
[1767059626287,0.00055862,87334.0,87325.0,0.01145147]
[1767059626645,0.00055862,87334.0,87326.0,0.01145134]
[1767059627034,0.00055862,87334.0,87325.0,0.01145147]
[1767059627402,0.00055862,87334.0,87327.0,0.01145121]
[1767059628580,0.00055862,87334.0,87328.0,0.01145108]
[1767059628779,0.00055862,87334.0,87327.0,0.01145121]
[1767059629190,0.00055862,87334.0,87326.0,0.01145134]
[1767059629627,0.00055862,87334.0,87327.0,0.01145121]
[1767059629931,0.00055862,87334.0,87326.0,0.01145134]
[1767059630510,0.00055862,87334.0,87325.0,0.01148]
[1767059632298,0.00055862,87334.0,87325.0,0.02293147]
[1767059632518,0.00055862,87334.0,87325.0,0.01148]
[1767059633202,0.00055862,87334.0,87325.0,0.02293147]
[1767059634494,0.00055862,87334.0,87326.0,0.01145134]
[1767059635519,0.00055862,87334.0,87325.0,0.01148]
[1767059636812,0.01073751,87333.0,87325.0,0.02293147]
[1767059637028,0.01073751,87332.0,87325.0,0.01148]
[1767059637241,0.00055862,87334.0,87325.0,0.02293147]
[1767059637455,0.0107376,87333.0,87325.0,0.02293147]
[1767059637674,0.00055862,87334.0,87325.0,0.01148]
[1767059637881,0.0107376,87333.0,87325.0,0.01148]
[1767059638107,0.00055862,87334.0,87325.0,0.01148]
[1767059638262,0.0107376,87333.0,87325.0,0.01148]
[1767059638419,0.00055862,87334.0,87325.0,0.01148]
[1767059643767,0.00055862,87334.0,87320.0,0.06871261]
[1767059643768,0.00055,87325.0,87317.0,0.01145252]
[1767059643901,0.51995148,87330.0,87323.0,0.13753345]
[1767059644115,0.0107389,87329.0,87323.0,0.13753345]
[1767059644329,0.51995148,87333.0,87323.0,0.13753345]
[1767059644535,0.01073881,87332.0,87323.0,0.13753345]
[1767059644732,0.01073881,87331.0,87323.0,0.13753345]
[1767059644962,0.01073881,87330.0,87323.0,0.13753345]
[1767059645180,0.51995148,87333.0,87323.0,0.13753345]
[1767059645383,0.01073869,87332.0,87323.0,0.13753345]
[1767059645630,0.51995148,87333.0,87323.0,0.13753345]
[1767059645828,0.0460689,87353.0,87343.0,46.33842973]
[1767059646028,0.24045973,87344.0,87343.0,45.6128223]
[1767059646235,0.24045973,87344.0,87343.0,45.13704019]
[1767059646456,0.26520068,87344.0,87343.0,44.20111658]
[1767059646640,0.24045973,87344.0,87343.0,43.89175451]
[1767059646888,0.26520069,87344.0,87343.0,42.99662099]
[1767059647070,0.06872491,87344.0,87343.0,42.6063728]
[1767059647291,0.09346594,87344.0,87343.0,42.19934222]
[1767059647428,0.09346594,87344.0,87343.0,41.82097164]
[1767059647632,0.09346594,87344.0,87343.0,41.81306734]
[1767059647879,0.03794472,87344.0,87343.0,41.11411025]
[1767059648025,0.03794472,87344.0,87343.0,40.99948399]
[1767059648230,0.03794472,87344.0,87343.0,40.94217086]
[1767059648489,0.03794472,87344.0,87343.0,40.71291834]
[1767059648728,0.03794472,87344.0,87343.0,40.54097895]
[1767059648953,0.03794472,87344.0,87343.0,40.42635269]
[1767059649188,0.03794472,87344.0,87343.0,39.54268848]
[1767059649426,0.03794472,87344.0,87343.0,39.37074909]
[1767059649649,0.03794472,87344.0,87343.0,38.62312181]
[1767059649884,0.01148,87344.0,87343.0,38.39386929]
[1767059650107,0.01148,87344.0,87343.0,38.16461677]
[1767059650328,0.01148,87344.0,87343.0,37.99267738]
[1767059650570,0.01148,87344.0,87343.0,37.59703957]
[1767059650788,0.01148,87344.0,87343.0,37.25871489]
[1767059651020,0.01148,87344.0,87343.0,36.5303065]
[1767059651265,0.01148,87344.0,87343.0,36.02559653]
[1767059651500,0.01148,87344.0,87343.0,35.46357343]
[1767059651731,0.01148,87344.0,87343.0,34.95886346]
[1767059651964,0.01148,87344.0,87343.0,34.45415349]
[1767059652176,0.01148,87344.0,87343.0,33.94795674]
[1767059652408,0.01148,87344.0,87343.0,33.38593364]
[1767059652641,0.01148,87344.0,87343.0,32.88122368]
[1767059652858,0.01148,87344.0,87343.0,32.65197116]
[1767059653089,0.01148,87344.0,87343.0,32.42271864]
[1767059653305,0.01148,87344.0,87343.0,32.25077925]
[1767059653535,0.01148,87344.0,87343.0,32.02152673]
[1767059653780,0.01148,87344.0,87343.0,31.84958734]
[1767059653984,0.01148,87344.0,87343.0,31.73496108]
[1767059654191,0.01148,87344.0,87343.0,31.56302169]
[1767059654414,0.01148,87344.0,87343.0,31.44839543]
[1767059654624,0.01148,87344.0,87343.0,31.33376917]
[1767059654901,0.01148,87344.0,87343.0,31.27645604]
[1767059655107,0.01148,87344.0,87343.0,31.02483174]
[1767059655511,0.01148,87344.0,87343.0,31.02443409]
[1767059655690,0.01148,87344.0,87343.0,30.99005177]
[1767059655897,0.01148,87344.0,87343.0,30.95566945]
[1767059656107,0.01148,87344.0,87343.0,30.73856675]
[1767059656468,0.01156645,87344.0,87343.0,30.2567443]
[1767059656682,0.01156645,87344.0,87343.0,30.02749178]
[1767059656897,0.01156645,87344.0,87343.0,29.91286552]
[1767059657125,0.01156645,87344.0,87343.0,29.74092613]
[1767059657360,0.01156645,87344.0,87343.0,29.62629987]
[1767059657590,0.01156645,87344.0,87343.0,29.56898674]
[1767059657827,0.01156645,87344.0,87343.0,29.39704735]
[1767059657828,0.02230664,87344.0,87343.0,29.39704735]
[1767059658050,0.02230664,87344.0,87343.0,29.28242109]
[1767059658250,0.01868704,87344.0,87343.0,28.8356841]
[1767059658398,0.01868704,87344.0,87343.0,28.66374471]
[1767059658600,0.01868704,87344.0,87343.0,28.60643158]
[1767059658862,0.01868704,87344.0,87343.0,28.54911845]
[1767059659018,0.01868704,87344.0,87343.0,28.37717906]
[1767059659218,0.01890574,87344.0,87343.0,28.20523967]
[1767059659422,0.01890574,87344.0,87343.0,28.03330028]
[1767059659627,0.01890574,87344.0,87343.0,27.86136089]
[1767059659825,0.01890574,87344.0,87343.0,27.6894215]
[1767059660056,0.01890574,87344.0,87343.0,27.46016898]
[1767059660251,0.01890574,87344.0,87343.0,27.34554272]
[1767059660478,0.01890574,87344.0,87343.0,27.1162902]
[1767059660653,0.01890574,87344.0,87343.0,27.00166394]
[1767059661051,0.01890574,87344.0,87343.0,26.76495899]
[1767059661220,0.01890574,87344.0,87343.0,26.65033273]
[1767059661419,0.01890574,87344.0,87343.0,26.47839334]
[1767059661621,0.01890574,87344.0,87343.0,26.30645395]
[1767059661849,0.01681681,87344.0,87343.0,26.13451456]
[1767059662009,0.01681681,87344.0,87343.0,26.0198883]
[1767059662205,0.01681681,87344.0,87343.0,25.90526204]
[1767059662460,0.01681681,87344.0,87343.0,25.67600952]
[1767059662680,0.01681681,87344.0,87343.0,25.49804739]
[1767059662911,0.01681681,87344.0,87343.0,25.38342113]
[1767059663069,0.01681681,87344.0,87343.0,25.21148174]
[1767059663230,0.01681681,87344.0,87343.0,25.03954235]
[1767059663427,0.01681681,87344.0,87343.0,24.92491609]
[1767059663634,0.01681681,87344.0,87343.0,24.7529767]
[1767059663836,0.01681681,87344.0,87343.0,24.58103731]
[1767059664039,0.01681681,87344.0,87343.0,24.46641105]
[1767059664242,0.01503656,87344.0,87343.0,24.29447166]
[1767059664492,0.01503656,87344.0,87343.0,24.1798454]
[1767059664798,0.01503656,87344.0,87343.0,23.95059288]
[1767059664955,0.01503656,87344.0,87343.0,23.83596662]
[1767059665161,0.01503656,87344.0,87343.0,23.66402723]
[1767059665361,0.01503656,87344.0,87343.0,23.54940097]
[1767059665580,0.01503656,87344.0,87343.0,23.37746158]
[1767059665812,0.01503656,87344.0,87343.0,23.26283532]
[1767059665956,0.01503656,87344.0,87343.0,23.13703042]
[1767059666319,0.01503656,87344.0,87343.0,22.85046477]
[1767059666580,0.01503656,87344.0,87343.0,22.67852538]
[1767059666764,0.01503656,87344.0,87343.0,22.39156209]
[1767059666986,0.01503656,87344.0,87343.0,22.2196227]
[1767059667214,0.01503656,87344.0,87343.0,21.99217338]
[1767059667450,0.01503656,87344.0,87343.0,21.94677593]
[1767059667647,0.01503656,87344.0,87343.0,21.94618112]
[1767059672283,0.01338974,87344.0,87343.0,21.94618112]
[1767059672455,0.01229074,87344.0,87343.0,21.94618112]
[1767059673467,0.00931657,87344.0,87343.0,21.94618112]
[1767059673896,0.00818136,87344.0,87343.0,21.94618112]
[1767059674093,0.00697045,87344.0,87343.0,21.94618112]
[1767059676097,0.00697045,87344.0,87343.0,21.92755009]
[1767059677069,0.00697045,87344.0,87343.0,21.85073278]
[1767059679214,0.00697045,87344.0,87343.0,21.8049377]
[1767059679620,0.00697045,87344.0,87343.0,21.7561457]
[1767059679919,0.00697045,87344.0,87343.0,21.73242808]
[1767059680166,0.01148,87344.0,87343.0,21.73242808]
[1767059681757,0.0039316,87344.0,87343.0,21.73242808]
[1767059681983,0.0026082,87344.0,87343.0,21.73242808]
[1767059682133,0.01148,87344.0,87343.0,21.73242808]
[1767059682958,0.01148,87344.0,87343.0,21.68647308]
[1767059685383,0.02222116,87344.0,87343.0,21.68647308]
[1767059685983,0.02222116,87344.0,87343.0,21.63877308]
[1767059687000,0.02222116,87344.0,87343.0,21.62759519]
[1767059690987,0.02222116,87344.0,87343.0,21.6201433]
[1767059695100,0.02222116,87344.0,87343.0,21.60523858]
[1767059695905,0.02222116,87344.0,87343.0,21.54332656]
[1767059697044,0.02222116,87344.0,87343.0,21.532148]
[1767059698978,0.02222116,87344.0,87343.0,21.42747111]
[1767059699141,0.02222116,87344.0,87343.0,21.39308795]
[1767059699344,0.02222116,87344.0,87343.0,21.35870479]
[1767059699552,0.04696496,87344.0,87343.0,21.35870479]
[1767059699777,0.04696496,87344.0,87343.0,21.22180579]
[1767059700960,0.04357507,87344.0,87343.0,21.21477321]
[1767059701715,0.04357507,87344.0,87343.0,21.06057121]
[1767059701920,0.04122418,87344.0,87343.0,21.06057121]
[1767059702338,0.03910044,87344.0,87343.0,21.06057121]
[1767059703710,0.03617711,87344.0,87343.0,21.02256621]
[1767059703939,0.01148,87344.0,87343.0,20.79126321]
[1767059705375,0.01148,87344.0,87343.0,20.67561221]
[1767059706115,0.01148,87344.0,87343.0,20.66815983]
[1767059706963,0.01148,87344.0,87343.0,20.54132924]
[1767059712422,0.0686898,87350.0,87343.0,20.54132924]
[1767059712423,0.0003648,87351.0,87343.0,20.54132924]
[1767059712634,0.01148,87350.0,87343.0,20.54132924]
[1767059715498,0.0107403,87349.0,87343.0,20.54132924]
[1767059715724,0.0107403,87348.0,87343.0,20.54132924]
[1767059715922,0.0107403,87347.0,87343.0,20.54132924]
[1767059716124,0.0107403,87346.0,87343.0,20.54132924]
[1767059716419,0.0107403,87345.0,87343.0,20.54132924]
[1767059716637,0.0107403,87344.0,87343.0,20.54132924]
[1767059717237,0.00952755,87344.0,87343.0,20.53015136]
[1767059718429,0.00730176,87344.0,87343.0,20.53015136]
[1767059718629,0.00607606,87344.0,87343.0,20.52975373]
[1767059721003,0.00607606,87344.0,87343.0,18.92906043]
[1767059721347,0.00607606,87344.0,87343.0,18.90705443]
[1767059721773,0.06332097,87344.0,87343.0,18.90567684]
[1767059721989,0.00607606,87344.0,87343.0,18.88734584]
[1767059722385,0.00607606,87344.0,87343.0,18.61887351]
[1767059724589,0.00607606,87344.0,87343.0,18.51073366]
[1767059727072,0.05187606,87344.0,87343.0,18.51073366]
[1767059727501,0.05187606,87344.0,87343.0,18.44473383]
[1767059728315,0.10912097,87344.0,87343.0,18.44473383]
[1767059728615,0.05187606,87344.0,87343.0,18.44473383]
[1767059729585,0.05187606,87344.0,87343.0,18.40879444]
[1767059730269,0.05187606,87344.0,87343.0,18.06191444]
[1767059730503,0.05187606,87344.0,87343.0,17.90222439]
[1767059730707,0.10912097,87344.0,87343.0,17.90222439]
[1767059730912,0.10912097,87344.0,87343.0,17.36440819]
[1767059731134,0.10912097,87344.0,87343.0,17.32136819]
[1767059731532,0.10912097,87344.0,87343.0,17.26405506]
[1767059731899,0.05187606,87344.0,87343.0,17.03480254]
[1767059732044,0.05187606,87344.0,87343.0,16.86286315]
[1767059732225,0.05187606,87344.0,87343.0,16.71576689]
[1767059732430,0.05187606,87344.0,87343.0,16.5438275]